Cogmind - Beta 13 @@@ ROGUE MODE // 2024.07.07 @ 22:27:57 Player: gigi283 Result: Destroyed by G-34 Mercenary with Small Laser Performance ------------- Evolutions (0) 0 Regions Visited (2) 400 Robots Destroyed (29) 145 Value Destroyed (591) 591 Prototype IDs (0) 0 Alien Tech Used (0) 0 Bonus (0) 0 TOTAL SCORE: 1136 Bonus ------- None Cogmind --------- Core Integrity 0/250 Matter 272/300 Energy 228/250 System Corruption 0% Temperature Cool (6) Movement Treading (160) Location -10/Subcaves Parts ------- > --- POWER (1) -------- Ion Engine > --- PROPULSION (2) --- Light Treads Light Treads > --- UTILITY (2) ------ Large Storage Unit Sensor Array > --- WEAPON (2) ------- Assault Rifle Mining Laser > --- INVENTORY (15) --- Ion Engine Hover Unit Hover Unit High-capacity Matter Pod (200) Shield Generator Assault Rifle Assault Rifle Assault Rifle Grenade Launcher Maul Peak State ------------ > --- POWER ------------ Ion Engine > --- PROPULSION ------- Light Treads Light Treads > --- UTILITY ---------- Large Storage Unit Sensor Array > --- WEAPON ----------- Assault Rifle Assault Rifle > --- INVENTORY -------- Ion Engine Hover Unit Hover Unit High-capacity Matter Pod Shield Generator Assault Rifle Assault Rifle Maul [Rating: 8] Favorites ----------- Power Ion Engine Engine Ion Engine Propulsion Light Treads Treads Light Treads Leg Aluminum Leg Wheel Wheel Flight Unit Flight Unit Utility Sensor Array Device Sensor Array Storage Large Storage Unit Weapon Assault Rifle Ballistic Gun Assault Rifle Launcher Grenade Launcher Special Weapon Mining Laser Build | -11 -10 -10 ------- Run | Yrd Mat Sub Slots Evolved . | . . . Power . | . . . Propulsion . | . . . Utility . | . . . Weapon . | . . . Parts Attached 30 | 8 19 3 Power 4 | 1 3 . Engine 4 | 1 3 . Core . | . . . Reactor . | . . . Propulsion 11 | 3 8 . Treads 2 | . 2 . Leg 2 | . 2 . Wheel 5 | 3 2 . Hover . | . . . Flight 2 | . 2 . Utility 6 | 2 4 . Device 3 | 1 2 . Storage 3 | 1 2 . Processor . | . . . Hackware . | . . . Protection . | . . . Artifact . | . . . Weapon 9 | 2 4 3 Energy Gun . | . . . Energy Cannon . | . . . Ballistic Gun 7 | 2 3 2 Ballistic Cannon . | . . . Launcher 1 | . 1 . Special Weapon 1 | . . 1 Impact Weapon . | . . . Slashing Weapon . | . . . Piercing Weapon . | . . . Special Melee Weapon . | . . . Unidentified Prototypes . | . . . Parts Lost 3 | . 3 . Power . | . . . Propulsion 1 | . 1 . Utility 1 | . 1 . Weapon 1 | . 1 . Highest Loss Streak 2 | . 2 . To Critical Strikes . | . . . Average Slot Usage (%) 99 | . 98 100 Engine 14 | . 14 14 Treads 24 | . 24 28 Wheel 2 | . 3 . Device 13 | . 13 14 Storage 14 | . 14 14 Ballistic Gun 21 | . 22 16 Launcher 4 | . 4 4 Special Weapon 1 | . . 7 Naked Turns . | . . . Heaviest Build 31 | 14 31 31 Greatest Support 40 | 26 40 40 Greatest Overweight (x) 1 | . 1 . Average Overweight (x) . | . . . Largest Inventory Capacity 15 | 8 15 15 Average Capacity 13 | 7 13 15 Most Carried 10 | 3 10 10 Average Carried 8 | 1 8 10 Final Capacity 15 | 8 15 15 Final Carried 10 | 3 10 10 Class Distribution -------------------- 87% | Scavenger-Mutant 12% | Mutant Dominant Class ---------------- Scavenger-Mutant | -10/Materials Scavenger-Mutant | -10/Subcaves Resources | -11 -10 -10 ----------- Run | Yrd Mat Sub Matter Collected 1037 | 315 692 30 Remotely . | . . . Salvage Created 800 | 110 664 26 Parts 57 | 6 47 4 Haulers Intercepted 1 | . 1 . Recyclers Shooed 2 | 1 1 . Parts Field Recycled . | . . . Retrieved Matter . | . . . Parts Self-Destructed 4 | . . 4 Prevented . | . . . Kills | -11 -10 -10 ------- Run | Yrd Mat Sub Combat Hostiles Destroyed 22 | . 18 4 Guns 17 | . 17 . AOE 5 | . 1 4 Classes Destroyed 6 | 2 4 . Tunneler 2 | 2 . . Hauler 1 | . 1 . Recycler 1 | 1 . . Watcher 3 | . 3 . Swarmer 10 | . 6 4 Grunt 12 | . 12 . Best Kill Streak 4 | 3 3 4 Combat Bots Only 4 | . 3 4 Max Kills in Single Turn 4 | 1 2 4 Gunslinging . | . . . Exploded 4 | . 1 4 Melee . | . . . Uniques/NPCs Destroyed . | . . . Combat | -11 -10 -10 -------- Run | Yrd Mat Sub Hostile Shots Fired 111 | . 86 25 Missed 29 | . 20 9 Damage Taken 954 | 1 741 212 Core 256 | . 188 68 Absorbed by Shields . | . . . Regen/Repaired (Parts) 14 | . 14 . Core Remaining (%) 100 | 100 . . Volleys Fired 86 | 10 64 12 Largest 2 | 2 2 2 Hottest 100 | 40 50 100 Shots Fired 161 | 20 127 14 Gun 150 | 20 124 6 Cannon . | . . . Launcher 4 | . 3 1 Special 7 | . . 7 Kinetic 150 | 20 124 6 Thermal 7 | . . 7 Explosive 4 | . 3 1 Electromagnetic . | . . . Robot Hit Streak 7 | 4 7 2 Robot Miss Streak 5 | 2 5 1 Penetration Max . | . . . Secondary Targets 2 | . 2 . Max Gunslinging Chain 1 | . 1 . Shots Hit Robots 85 | 11 70 4 Core Hits 45 | 4 37 4 Critical Kills 1 | . 1 . Critical Parts Destroyed 1 | . 1 . Critical Strikes 2 | . 2 . Destroy 2 | . 2 . Melee Attacks . | . . . Impact . | . . . Slashing . | . . . Piercing . | . . . Sneak Attacks . | . . . Combat Hostiles . | . . . Follow-up Attacks . | . . . Damage Inflicted 1230 | 124 904 202 Guns 1002 | 121 856 25 Cannons . | . . . Explosions 193 | . 40 153 Melee . | . . . Ramming 11 | 3 8 . Kinetic 1002 | 121 856 25 Thermal 24 | . . 24 Explosive 193 | . 40 153 Electromagnetic . | . . . Impact . | . . . Slashing . | . . . Piercing . | . . . Highest Corruption . | . . . Average Corruption . | . . . Corruption Purged . | . . . Corruption Blocked . | . . . Overload Shots . | . . . Overflow Damage . | . . . Projectiles . | . . . Explosions . | . . . Melee . | . . . Knockbacks . | . . . Impact . | . . . Kinetic . | . . . Secondary . | . . . Self-Inflicted Damage 47 | 1 18 28 Shots 2 | . 1 1 Rammed 3 | 1 2 . Targets Rammed 3 | 1 2 . Kicked . | . . . Crushed . | . . . Highest Temperature 30 | . 30 . Average Temperature 9 | . 9 . Received Heat Transfer 435 | . 360 75 Siege Activations . | . . . Robots Corrupted . | . . . Combat Hostiles . | . . . Parts Fried . | . . . Impact Corruptions . | . . . Robots Melted . | . . . Combat Hostiles . | . . . Parts Melted . | . . . Heat Transferred 50 | . . 50 Parts Sabotaged . | . . . Parts Stolen . | . . . Parts Stripped . | . . . Power Chain Reactions . | . . . Alert | -11 -10 -10 ------- Run | Yrd Mat Sub Peak Influence 278 | 15 278 . Initial 9 | . 9 . Average 81 | 5 83 . Maximum Alert Level 1 | . 1 . Low Security (%) 81 | 100 81 . Level 1 18 | . 18 . Level 2 . | . . . Level 3 . | . . . Level 4 . | . . . Level 5 . | . . . High Security . | . . . Max Security . | . . . Squads Dispatched 5 | . 5 . Investigation 3 | . 3 . Extermination . | . . . Reinforcement 2 | . 2 . Assault . | . . . Garrison . | . . . Intercept . | . . . Searches Triggered . | . . . Construction Impeded . | . . . Haulers Reinforced . | . . . Active Scanning Responses . | . . . Cargo Convoy Interrupts . | . . . Stealth | -11 -10 -10 --------- Run | Yrd Mat Sub Distress Signals . | . . . Communications Jammed . | . . . Distress Signals . | . . . Times Spotted 34 | . 27 7 Peak Tracking Total 5 | . 4 5 Tactical Retreats 2 | . . 2 Traps | -11 -10 -10 ------- Run | Yrd Mat Sub Traps Triggered 3 | . 3 . Indirectly . | . . . Trap Hack Attempts . | . . . Triggered . | . . . Disarmed . | . . . Reprogrammed . | . . . Reused . | . . . Traps Extracted . | . . . Installed . | . . . Triggered . | . . . Machines | -11 -10 -10 ---------- Run | Yrd Mat Sub Machines Disabled . | . . . Max in Single Turn . | . . . Machines Repaired . | . . . Machines Dismantled . | . . . Machines Sabotaged . | . . . Overloaded Fab Kills . | . . . Hacking | -11 -10 -10 --------- Run | Yrd Mat Sub Machines Accessed 5 | . 5 . Terminals 4 | . 4 . Fabricators . | . . . Repair Stations 1 | . 1 . Recycling Units . | . . . Scanalyzers . | . . . Garrison Access . | . . . Total Hacks 9 | . 9 . Successful 7 | . 7 . Failed 2 | . 2 . Catastrophic 1 | . 1 . Database Lockouts . | . . . Manual 5 | . 5 . Terminals 7 | . 7 . Fabricators . | . . . Repair Stations 2 | . 2 . Recycling Units . | . . . Scanalyzers . | . . . Garrison Access . | . . . Terminal Hacks 2 | . 2 . Record 1 | . 1 . Zone Layout 1 | . 1 . Fabricator Hacks . | . . . Repair Station Hacks 2 | . 2 . Scan Component 1 | . 1 . Repair 1 | . 1 . Recycling Unit Hacks . | . . . Scanalyzer . | . . . Garrison Access Hacks . | . . . Unauthorized Hacks 3 | . 3 . Terminals 3 | . 3 . Botnet 3 | . 3 . Fabricators . | . . . Repair Stations . | . . . Recycling Units . | . . . Scanalyzers . | . . . Garrison Access . | . . . Data Cores Recovered . | . . . Used . | . . . Hacking Detections 2 | . 2 . Full Trace Events . | . . . Feedback Events . | . . . Feedback Blocked . | . . . Robot Schematics Acquired . | . . . Robots Built . | . . . Authchips . | . . . Time . | . . . Total Robot Build Rating . | . . . Part Schematics Acquired . | . . . Parts Built . | . . . Authchips . | . . . Time . | . . . Total Part Build Rating . | . . . Parts Repaired 1 | . 1 . Time 26 | . 26 . Parts Recycled . | . . . Recycled Matter . | . . . Retrieved Matter . | . . . Retrieved Components . | . . . Parts Scanalyzed . | . . . Part Schematics Acquired . | . . . Parts Damaged . | . . . Bothacking | -11 -10 -10 ------------ Run | Yrd Mat Sub Used RIF Installer . | . . . Robots Hacked . | . . . Non-combat . | . . . Combat . | . . . Robot Hacks Applied . | . . . Relay Couplers Released . | . . . Fabnet Peak Effective % . | . . . Robots Rewired . | . . . Allies Hacked . | . . . Hacks Repelled . | . . . Allies | -11 -10 -10 -------- Run | Yrd Mat Sub Total Allies . | . . . Largest Group . | . . . Highest-Rated Group . | . . . Highest-Rated Ally . | . . . Total Orders . | . . . Ally Attacks . | . . . Total Damage . | . . . Kills . | . . . Allies Corrupted . | . . . Allies Melted . | . . . Intel | -11 -10 -10 ------- Run | Yrd Mat Sub Robot Analysis Total . | . . . Derelict Logs Recovered 1 | . . 1 Drone Launches . | . . . Drone Recoveries . | . . . Exploration | -11 -10 -10 ------------- Run | Yrd Mat Sub Turns Passed 3313 | 82 2553 678 Spaces Moved 1682 | 44 1261 377 Core 3 | 3 . . Treads 1405 | . 1028 377 Legs 39 | . 39 . Wheels 234 | 41 193 . Hover . | . . . Flight 1 | . 1 . Fastest Speed 50 | 50 80 160 Average Speed 148 | 81 147 160 Slowest Speed 190 | 90 190 160 Overloaded Moves . | . . . Propulsion Burnouts . | . . . Robots Hopped . | . . . Cave-ins Triggered . | . . . Exploration Rate (%) 36 | 3 87 19 Regions Visited 2 Branch Regions 1 Pre-discovered Areas . | . . . Known Exits Taken . | . . . Unknown Exits Taken 2 | 1 1 . Scrap Searched . | . . . Spaces Dug . | . . . Terrain Destroyed 28 | . 21 7 Melee . | . . . Projectile . | . . . AOE 28 | . 21 7 Terrain Rammed . | . . . Walls Destroyed . | . . . Machines Disabled . | . . . Actions | -11 -10 -10 --------- Run | Yrd Mat Sub Total 2332 | 69 1839 424 Wait 492 | . 461 31 Move 1680 | 43 1260 377 Hop . | . . . Pick Up 21 | 4 17 . Fast Attach 12 | 8 4 . Attach 2 | . 2 . Detach 1 | 1 . . Swap 16 | . 13 3 Drop 18 | 2 16 . Fire 86 | 10 64 12 Melee . | . . . Ram 1 | 1 . . Kick . | . . . Crush 2 | . 2 . Escape Stasis . | . . . Rewire 1 | . . 1 Trap . | . . . Miscellaneous . | . . . Route ------- -11/Scrapyard -10/Materials (discovered 6 exits: [*Mat x3] / [*Min x2] / [*Sub]) -10/Subcaves (discovered 1 exit: [*Mat]) History --------- Turn | Location | Event 2 | -11/Scrapyard | Met Revision 17 12 | -11/Scrapyard | Discovered new exit (range 15) 83 | -11/Scrapyard | Entered Materials 104 | -10/Materials | Discovered new exit (range 15) 314 | -10/Materials | Build established: Mutant 501 | -10/Materials | Discovered new exit (range 15) 671 | -10/Materials | Build established: Scavenger-Mutant 706 | -10/Materials | Core integrity fell below 50% 838 | -10/Materials | Discovered new exit (range 7) 933 | -10/Materials | Repaired Sensor Array 1227 | -10/Materials | Discovered new exit (range 7) 2154 | -10/Materials | Discovered new exit (range 16) 2620 | -10/Materials | Discovered new exit (range 8) 2636 | -10/Materials | Entered Subcaves 2652 | -10/Subcaves | Learned location of 1 exit from Materials 2755 | -10/Subcaves | Core integrity fell below 20% 2915 | -10/Subcaves | Discovered new exit (range 10) 3314 | -10/Subcaves | Destroyed by G-34 Mercenary with Small Laser Last Messages --------------- 02804_ Subatomizers dissect the Sub. Monowheel. 02819_ Subatomizers dissect the Sub. Optics. 02832_ S-10 Pest destroyed. 02836_ Acquired 8 matter. 02838_ Acquired 5 matter. 02840_ Lgt. Assault Rifle fries itself beyond repair. 02842_ Acquired 6 matter. 02845_ Flight Unit fries itself beyond repair. 02847_ Lgt. Ion Engine fries itself beyond repair. 02847_ Flight Unit fries itself beyond repair. 02847_ Subatomizers dissect the Sub. Monowheel. 02847_ Acquired 2 matter. 02871_ The unstable cave ceiling collapses. 02876_ Subatomizers dissect the Sub. Monowheel. 02915_ EXIT=FOUND 02954_ 79-9S2(u) tweaks Twisted Machinery. 03178_ Attempting to rewire 5C-8US(R). 03178_ 5C-8US(R) is broken beyond repair. Map ----- +----------------------------------------------------+ | ???????# """#???????????# ##??????????????? | | ???????# "#???????????# #####???????????? | | ???????# #??????##???# #???????????? | | ???????# #?????##" ### ##???????????? | | ???????##" ##?????#"" ####????????????? | | ????????## ####???##" ##???????????????? | | ?????????# #????## ## #????????????????? | | ?????????# #????#####?## ###??????????????? | | ????????## #????# ####### #??????????????? | | ????????# #????# ## ##??????????????? | | ????????#### #????# ###?###???????????? | | ??????????##" #???### ## ##?## #???????????? | | ??????????# ##### #### #### #???????????? | | ??????????# "" ## #????????????? | | ??????????# "" ##????????????? | | ??????????# "" ## ## ##?????????????? | | ??????????# # ######## ## #??????????????? | | ??????????### ## #??## ## #??????????????? | | ####???????# ### #???# #??????????????? | | #???????# ## ##### ##?????????????? | | #????????## ##????????????? | | #???????## ## #????????????? | | #??????## # #????????????? | | ###?????## ##### ## #????????????? | | #???????# #???## g # #????????????? | | #???????# ##????# @# #? #????????????? | | #???????## < ##?????## #### ## ##????????????? | | ##????##### ##???????# #?# ####?????????????? | | #??### ### #????????## #?## #???????????????? | | #### ##?????????#### #???????????????? | | ### ###????????????# ##???????????????? | | ### ##?????????????# ????????????????? | | ## #####?????????????# ##???????????????? | | ##????????????????# ####????????????????? | | ## #???????????????# #????????????????????? | | ## ##???????????????# ?????????????????????? | | ?# #????????????????# #?????????????????????? | | ?# ##????????????????# #??????????????????????? | | ?# ##???????????????? ???????????????????????? | | ## #??????????????? ????????????????????????? | | # #??????????????# ????????????????????????? | | # #??????????????? ?????????????????????????? | | ## #????????????????????????????????????????? | | ?## #????????????????????????????????????????? | | ??## #????????????????????????????????????????? | | ???## ##????????????????????????????????????????? | | ?????###?????????????????????????????????????????? | | ?????????????????????????????????????????????????? | | ?????????????????????????????????????????????????? | | ?????????????????????????????????????????????????? | +----------------------------------------------------+ Best States ------------- Heat Dissipation 25 Energy Generation 10 Energy Capacity 250 Matter Stores 300 Matter Capacity 300 Sight Range 16 Robot Scan Range 14 Terrain Scan Density 10 Evasion (%) 55 Recoil Reduction 2 Item Schematics ----------------- None Robot Schematics ------------------ None Fabricated ------------ Nothing Alien Tech Used ----------------- None Achievements -------------- None Challenges ------------ None Game ------ Seed MiningContainmentScythe Manual? 0 Play Time 00:26:57 Cumulative 23.9 hours Start 2024.07.07 @ 22:00:35 End 2024.07.07 @ 22:27:57 Sessions 1 Manual Loads 0 Difficulty Rogue Special Mode None Game No. 34 Rogue 34 Adventurer 0 Explorer 0 Win Type - Total 0 Types 0/0/0/0/0/0/0/0/0 Lore% 14 Gallery% 23 Achievement% 20 Wizard Run 0 Options --------- Layout 2 ASCII 0 Keyboard 0 Movement Arrows Keybinds 0 Fullscreen 2 Font 24/Crisp Map View 50x44 Zoom Use 0% Tactical HUD 1 Map Filters NONE Filters NONE Steam 1 RUN: 90a60813-fa39-401b-bc24-bccc04df2d53